bitfinex-derivatives/quotes_SOLF0:USTF0_20250202
["timestamp","ask_amount","ask_price","bid_price","bid_amount"]
[1738496710696,0.03122295,208.73,208.67,0.03672447]
[1738496714201,0.03122295,208.73,208.71,4.7926]
[1738496714399,1.5437,208.81,208.72,1.4974]
[1738496714608,1.5437,208.81,208.67,0.03672447]
[1738496714793,1.5437,208.81,208.62,6.2921]
[1738496714794,2.883,208.8,208.62,6.2921]
[1738496714997,2.883,208.8,208.62,1.4974]
[1738496715196,1.5437,208.81,208.62,1.4974]
[1738496715602,0.03192229,208.74,208.69,0.03522527]
[1738496715802,4.7929,208.7,208.69,0.03522527]
[1738496716004,0.03192229,208.74,208.44,4.16]
[1738496716205,2.9212,208.69,208.51,1.4928]
[1738496716603,2.9212,208.69,208.55,4.7962]
[1738496717203,4.7945,208.63,208.6,0.03264144]
[1738496717806,0.03455832,208.64,208.6,0.03264144]
[1738496718404,4.7946,208.63,208.6,0.03264144]
[1738496719003,4.7948,208.62,208.6,0.03264144]
[1738496720105,0.03455832,208.64,208.37,94.9]
[1738496720305,0.03455832,208.64,208.44,1.4421]
[1738496720609,4.7978,208.49,208.44,1.4421]
[1738496720807,18.44,208.68,208.44,1.4421]
[1738496721209,4.795,208.61,208.44,1.4421]
[1738496721408,0.03360189,208.58,208.54,0.03645364]
[1738496721607,0.03360189,208.58,208.41,0.642]
[1738496721811,4.7978,208.49,208.41,0.642]
[1738496722107,18.44,208.68,208.41,0.642]
[1738496722309,4.7987,208.45,208.39,1.4465]
[1738496722505,18.44,208.68,208.39,1.4465]
[1738496722703,0.83839137,208.67,208.39,1.4465]
[1738496722902,0.03266999,208.55,208.51,0.0364029]
[1738496723306,18.44,208.66,208.46,4.7984]
[1738496723509,0.03480122,208.55,208.39,1.4465]
[1738496723911,4.12,208.66,208.54,0.0351747]
[1738496724112,0.03093572,208.49,208.42,4.7991]
[1738496724614,4.12,208.66,208.42,4.7991]
[1738496724908,0.03637727,208.48,208.43,0.03343415]
[1738496725108,0.83839775,208.65,208.39,6.2464]
[1738496725311,4.7968,208.53,208.52,0.03174788]
[1738496725610,18.44,208.66,208.37,94.9]
[1738496725611,0.0320177,208.54,208.37,94.9]
[1738496725811,4.7978,208.49,208.38,1.5659]
[1738496726012,4.7978,208.49,208.4,4.7997]
[1738496726213,1.5186,208.53,208.38,1.5659]
[1738496726617,4.7982,208.47,208.4,4.7997]
[1738496726821,4.7982,208.47,208.43,0.03031002]
[1738496727317,4.7988,208.45,208.43,0.03031002]
[1738496727516,0.03599519,208.48,208.43,0.03031002]
[1738496728917,0.03599519,208.48,208.45,4.7986]
[1738496729316,4.7989,208.44,208.43,0.03031002]
[1738496729522,0.03599519,208.48,208.43,0.03031002]
[1738496730025,4.7989,208.44,208.43,0.03031002]
[1738496730418,0.03599519,208.48,208.43,0.03031002]
[1738496730620,0.03599519,208.48,208.29,1.5334]
[1738496731124,1.5675,208.49,208.29,1.5334]
[1738496731532,4.7985,208.46,208.38,4.8001]
[1738496731726,1.5675,208.49,208.29,1.5334]
[1738496732021,0.03634889,208.41,208.37,0.03444707]
[1738496733423,4.8002,208.38,208.37,0.03444707]
[1738496733928,4.801,208.35,208.27,4.8025]
[1738496734331,4.801,208.35,208.24,1.4528]
[1738496734532,4.8012,208.34,208.27,4.8027]
[1738496734731,1.5385,208.39,208.24,1.4528]
[1738496734930,1.5385,208.39,208.22,94.96]
[1738496735124,1.5385,208.39,208.29,0.03182343]
[1738496735325,0.03668168,208.34,208.29,0.03182343]
[1738496736233,0.03668168,208.34,208.22,78.91227083]
[1738496736431,0.03668168,208.34,208.25,4.8032]
[1738496736736,0.03668168,208.34,208.22,78.91227083]
[1738496736934,4.83798168,208.34,208.26,4.8029]
[1738496737238,0.03668168,208.34,208.22,78.91227083]
[1738496737431,4.8015,208.33,208.28,0.03656106]
[1738496737634,0.03668168,208.34,208.28,0.03656106]
[1738496740034,4.8023,208.29,208.28,0.03656106]
[1738496740532,4.8015,208.33,208.28,0.03656106]
[1738496740739,0.03668168,208.34,208.28,0.03656106]
[1738496741034,0.03668168,208.34,208.28,4.83886106]
[1738496741243,0.03668168,208.34,208.28,0.03656106]
[1738496741741,8.168e-05,208.34,208.33,4.8014]
[1738496742136,8.168e-05,208.34,208.29,6.3281]
[1738496742641,8.168e-05,208.34,208.29,1.5259]
[1738496744140,4.8014,208.33,208.29,1.5259]
[1738496744340,8.168e-05,208.34,208.28,0.03656106]
[1738496746044,4.8023,208.29,208.28,0.03656106]
[1738496746344,2.9487,208.33,208.07,95.02]
[1738496746639,4.8037,208.24,208.16,4.8051]
[1738496746836,1.5343,208.28,208.08,3.6934]
[1738496747543,0.03298923,208.2,208.16,0.03113613]
[1738496747839,1.4897,208.32,208.08,3.6934]
[1738496748035,0.03314219,208.2,208.16,0.03233735]
[1738496748541,0.03682582,208.2,208.16,0.03141935]
[1738496749338,0.03682582,208.2,208.18,4.8046]
[1738496750741,0.03682582,208.2,208.17,1.5285]
[1738496750943,0.03682582,208.2,208.16,0.03141935]
[1738496753646,4.84122582,208.2,208.16,0.03141935]
[1738496754143,4.8049,208.18,208.16,0.03141935]
[1738496755844,4.805,208.17,208.16,0.03141935]
[1738496756149,2.9426,208.19,207.99,4.16]
[1738496756349,2.9426,208.19,208.1,4.8066]
[1738496756551,2.9426,208.19,208.02,1.5397]
[1738496756842,4.1246086,208.26,208.12,4.8061]
[1738496757049,4.8044,208.2,208.03,2.3747]
[1738496757247,0.03642616,208.13,208.08,0.03420212]
[1738496757639,4.805,208.18,208.04,0.8148]
[1738496757840,0.03444435,208.13,208.08,0.03648367]
[1738496758041,0.03444435,208.13,208.12,4.8062]
[1738496758246,4.8046,208.19,208.02,0.13475546]
[1738496758442,0.03072434,208.15,208.1,0.03289765]
[1738496758751,0.03072434,208.15,208.02,0.13475546]
[1738496759045,5.6835086,208.24,208.1,0.03463289]
[1738496759551,5.6835086,208.24,208.15,0.03284773]
[1738496759845,0.03376595,208.19,208.15,0.03284773]
[1738496760753,6.595e-05,208.19,208.18,4.8048]
[1738496760953,7.455e-05,208.23,208.15,0.03284773]
[1738496761259,7.455e-05,208.24,208.15,0.03284773]
[1738496761552,4.8047,208.19,208.0,0.5700893]
[1738496761752,7.455e-05,208.24,208.01,0.88288238]
[1738496762145,1.5563,208.31,208.01,0.88288238]
[1738496762351,0.03593745,208.15,208.1,0.03652287]
[1738496762657,0.03593745,208.15,208.13,4.8059]
[1738496762854,4.8039,208.22,207.95,4.16]
[1738496763054,0.0354242,208.16,208.12,0.03047104]
[1738496763357,1.5563,208.31,207.98,0.88295655]
[1738496763545,1.5563,208.31,208.11,4.8064]
[1738496763753,0.03300353,208.16,208.12,0.03254207]
[1738496763955,4.8043,208.21,208.0,0.88299577]
[1738496764165,0.03330082,208.16,208.15,4.8055]
[1738496764649,1.5563,208.31,207.99,4.18]
[1738496764953,1.5563,208.31,208.0,0.8829392]
[1738496765149,0.034282,208.17,208.13,0.03452671]
[1738496765455,4.804,208.22,208.0,0.8829392]
[1738496765645,0.03621178,208.17,208.13,0.03262468]
[1738496765846,1.178e-05,208.17,208.16,4.8053]
[1738496766054,4.8029,208.27,208.14,1.5368]
[1738496766252,1.5563,208.31,208.14,1.5368]
[1738496766457,1.432,208.26,208.05,4.2]
[1738496766658,4.8039,208.23,208.05,4.2]
[1738496767155,1.432,208.26,208.0,1.4409]
[1738496767156,0.03410846,208.16,208.12,0.03082757]
[1738496767558,1.5428,208.25,208.15,4.8055]
[1738496767857,0.03632583,208.16,208.12,0.03188068]
[1738496768057,1.5428,208.25,208.15,4.8055]
[1738496768253,1.5428,208.25,208.04,4.2]
[1738496768254,0.03696432,208.16,208.12,0.03066795]
[1738496768456,1.5428,208.25,208.04,4.2]
[1738496768654,0.03499931,208.16,208.12,0.03256664]
[1738496768854,0.03499931,208.16,207.96,0.9617234]
[1738496769054,14.32,208.18,207.82,2.4415]
[1738496769359,4.8085,208.02,207.91,4.8109]
[1738496769552,4.8085,208.02,207.82,3.9503]
[1738496770253,0.0335053,207.98,207.94,0.03364901]
[1738496770651,14.32,208.18,207.82,3.9503]
[1738496770852,0.03329198,207.98,207.94,0.03622874]
[1738496771055,0.03329198,207.98,207.82,3.9503]
[1738496771360,0.03334748,207.96,207.94,0.03537602]
[1738496771759,4.8066,208.11,207.83,1.0985]
[1738496772063,25.74173242,208.24,207.83,1.0985]
[1738496772064,2.551e-05,207.97,207.93,0.0346308]
[1738496772359,4.8054,208.16,207.91,95.16]
[1738496772559,18.62,208.22,207.92,2.9775]
[1738496773366,0.03388518,208.09,208.05,0.03144492]
[1738496773762,4.8067,208.1,207.99,4.8091]
[1738496773963,4.8067,208.1,208.05,0.03588036]
[1738496773964,0.03238106,208.09,208.05,0.03588036]
[1738496774165,4.8074,208.07,208.05,0.03588036]
[1738496774462,1.4632,208.06,207.92,1.5277]
[1738496774858,4.8084,208.03,207.93,4.8104]
[1738496775562,0.03213723,208.0,207.96,0.03396635]
[1738496776460,0.03213723,208.0,207.98,4.8093]
[1738496777459,4.1070354,208.07,207.96,0.03396635]
[1738496778060,1.553,208.09,207.96,0.03396635]
[1738496778467,1.553,208.09,207.92,1.5277]
[1738496778660,1.601e-05,208.05,208.0,0.03652441]
[1738496779066,1.601e-05,208.05,208.03,4.8082]
[1738496779862,1.601e-05,208.05,208.0,0.03652441]
[1738496780167,4.80791601,208.05,208.0,0.03652441]
[1738496780367,1.601e-05,208.05,208.0,0.03652441]
[1738496780665,1.601e-05,208.05,207.92,1.5277]
[1738496780866,1.601e-05,208.05,207.99,4.8091]
[1738496781059,5.5899354,208.11,207.92,1.5277]
[1738496781463,4.8072,208.08,207.92,1.5277]
[1738496781863,0.03493868,208.02,207.98,0.03639823]
[1738496782059,0.03493868,208.02,208.01,4.8087]
[1738496782259,3.868e-05,208.02,208.01,4.8087]
[1738496782463,4.1070354,208.07,207.99,1.4564]
[1738496782669,4.1070354,208.07,208.06,4.8076]
[1738496783065,6.2621,208.14,208.06,4.8075]
[1738496783268,1.4564,208.14,208.0,1.1398]
[1738496783573,0.03200631,208.12,208.08,0.03333599]
[1738496783769,0.03200631,208.12,208.1,4.8066]
[1738496784274,0.03200631,208.12,208.08,0.03333599]
[1738496784875,0.03200631,208.12,208.1,4.8066]
[1738496786877,0.03200631,208.12,208.08,0.03333599]
[1738496786878,1.494,208.22,208.08,0.03333599]
[1738496787077,1.4326,208.25,208.08,0.03333599]
[1738496787273,1.4326,208.25,208.21,4.8041]
[1738496787479,1.4326,208.25,208.06,95.16]
[1738496788178,0.03600156,208.18,208.13,0.03033861]
[1738496788375,4.84080156,208.18,208.13,0.03033861]
[1738496788580,0.03600156,208.18,208.13,0.03033861]
[1738496790879,4.84080156,208.18,208.13,0.03033861]
[1738496791077,0.03600156,208.18,208.13,0.03033861]
[1738496791776,1.49730156,208.18,208.13,0.03033861]
[1738496793881,1.49730156,208.18,208.13,4.83623861]
[1738496794181,1.49730156,208.18,208.13,0.03033861]
[1738496794882,1.49730156,208.18,207.91,95.16]
[1738496795083,1.543,208.17,207.91,99.38]
[1738496795283,5.62896577,208.17,207.91,99.38]
[1738496795984,0.03281624,208.09,208.05,0.03692003]
[1738496796780,0.03281624,208.09,208.08,4.8071]
[1738496796986,0.03281624,208.09,208.05,0.03692003]
[1738496797686,0.03281624,208.09,208.08,4.8071]
[1738496797877,1.624e-05,208.09,208.08,4.8071]
[1738496801485,1.624e-05,208.09,207.98,2.7065]
[1738496802088,1.624e-05,208.09,208.08,4.8071]
[1738496802683,1.624e-05,208.09,208.08,9.0071]
[1738496807285,1.624e-05,208.09,208.08,11.6163]
[1738496807686,1.624e-05,208.09,208.08,6.2493]
[1738496807888,1.624e-05,208.09,208.08,4.8071]
[1738496810889,4.08923848,208.25,208.22,4.8038]
[1738496811089,4.08923848,208.25,208.08,2.66]
[1738496811286,4.08923848,208.31,208.08,2.66]
[1738496811989,0.03451073,208.22,208.17,0.03456318]
[1738496812188,0.03451073,208.22,208.13,4.14]
[1738496812388,3.0144,208.32,208.13,4.14]
[1738496812389,7.10363848,208.32,208.17,0.03482338]
[1738496812581,4.255e-05,208.2,208.13,4.14]
[1738496812787,7.10363848,208.32,208.13,4.14]
[1738496813087,7.10363848,208.32,208.24,4.8033]
[1738496813992,0.03555384,208.3,208.26,0.03594822]
[1738496814593,0.03555384,208.3,208.08,2.66]
[1738496814887,4.08923848,208.3,208.08,6.78]
[1738496815390,4.08923848,208.29,208.14,4.8056]
[1738496815594,4.08923848,208.28,208.08,2.66]
[1738496815792,0.0348042,208.24,208.19,0.03130568]
[1738496815987,0.0348042,208.24,208.08,2.66]
[1738496816192,4.08923848,208.27,208.08,2.66]
[1738496816797,4.8034,208.24,208.08,2.66]
[1738496817192,0.03175092,208.18,208.14,0.03065331]
[1738496817587,0.03175092,208.18,208.17,4.805]
[1738496817990,1.442,208.32,208.22,4.8039]
[1738496818195,1.442,208.32,208.08,2.66]
[1738496818196,1.5001,208.31,208.08,2.66]
[1738496818399,1.5001,208.31,208.09,0.88260671]
[1738496818595,12.250625,208.42,208.09,0.88260671]
[1738496818891,5.58753468,208.38,208.11,28.65]
[1738496819092,4.08743468,208.38,208.36,4.8005]
[1738496819292,3.468e-05,208.43,208.36,4.8005]
[1738496819592,3.468e-05,208.43,208.31,4.1]
[1738496819593,0.03590692,208.39,208.38,4.8002]
[1738496819795,0.03590692,208.39,208.37,0.03636316]
[1738496820192,0.03590692,208.39,208.37,4.83666316]
[1738496820391,9.39813242,208.44,208.37,0.03636316]
[1738496820693,1.90833242,208.44,208.42,4.7991]
[1738496820892,3.0237,208.55,208.37,0.03636316]
[1738496821096,1.5404,208.48,208.37,0.03636316]
[1738496821292,1.5404,208.48,208.32,1.5083]
[1738496821797,0.03318637,208.42,208.38,0.03216885]
[1738496822002,0.03318637,208.42,208.24,4.1]
[1738496822405,4.8007,208.36,208.24,4.1]
[1738496822705,1.4906,208.35,208.24,4.1]
[1738496822906,1.4359,208.45,208.24,4.1]
[1738496823119,1.4906,208.44,208.24,4.1]
[1738496823401,0.03310591,208.32,208.27,0.03195225]
[1738496823599,0.03310591,208.32,208.24,4.1]
[1738496823800,1.4906,208.44,208.27,0.03119197]
[1738496824103,0.0317806,208.3,208.24,4.1]
[1738496824310,1.4906,208.44,208.11,1.199]
[1738496824603,0.03655966,208.29,208.12,6.55726216]
[1738496824804,0.03655966,208.29,208.12,5.6749]
[1738496825099,18.42,208.4,208.12,1.5749]
[1738496825303,18.42,208.4,208.08,166.62160891]
[1738496825506,18.42,208.4,208.09,1.5526]
[1738496825700,18.42,208.4,208.12,4.8061]
[1738496825902,0.03575561,208.26,208.22,0.03386357]
[1738496826096,0.03575561,208.26,208.12,4.8061]
[1738496826298,4.1,208.4,208.09,1.5526]
[1738496826704,4.8019,208.31,208.14,4.8056]
[1738496826899,2.9132,208.3,208.09,1.5526]
[1738496827407,0.03292594,208.22,208.17,0.03660689]
[1738496827907,0.03292594,208.22,208.09,1.5526]
[1738496828209,2.9132,208.3,208.17,0.03498154]
[1738496828602,4.8051,208.17,208.07,4.8073]
[1738496828802,2.9132,208.3,208.05,1.5749]
[1738496829007,2.9132,208.3,208.03,1.4382]
[1738496829703,0.03390818,208.19,208.14,0.03075309]
[1738496829912,0.03390818,208.19,208.03,1.4382]
[1738496830205,4.1,208.28,208.03,1.4382]
[1738496830807,4.1,208.28,208.01,95.08]
[1738496831013,0.03358867,208.18,208.13,0.03308756]
[1738496831201,0.03358867,208.18,208.01,95.08]
[1738496831407,4.1,208.28,208.01,95.08]
[1738496831908,4.8061,208.13,208.01,95.08]
[1738496832110,4.1,208.28,208.01,95.08]
[1738496832311,0.033651,208.09,208.03,4.8082]
[1738496832612,4.1,208.28,208.01,95.08]
[1738496832808,0.03285981,208.08,208.01,95.08]
[1738496833110,4.1,208.28,208.01,95.08]
[1738496833306,0.03549556,208.07,208.01,95.08]
[1738496833610,4.8076,208.06,207.98,4.8093]
[1738496833911,0.03113711,208.06,207.93,3.0194]
[1738496834808,0.03113711,208.06,207.97,5.21666012]
[1738496835109,0.03113711,208.06,207.97,0.40726012]
[1738496836105,0.03113711,208.06,207.98,4.8093]
[1738496836311,0.03113711,208.06,207.97,0.40726012]
[1738496836508,0.03113711,208.06,207.83,11.06579083]
[1738496836707,4.809,208.0,207.91,4.811]
[1738496837012,3.1329,208.05,207.85,1.493]
[1738496837208,0.03464807,207.98,207.85,1.493]
[1738496837612,1.482,208.04,207.85,1.493]
[1738496837804,0.03501158,207.94,207.85,1.493]
[1738496838512,0.03501158,207.94,207.93,4.8104]
[1738496839308,0.03501158,207.94,207.85,1.493]
[1738496839612,0.03501158,207.94,207.77,99.2]
[1738496839814,0.03501158,207.94,207.77,100.68]
[1738496840113,4.06,208.0,207.78,0.88380582]
[1738496840315,4.8116,207.89,207.79,4.8136]
[1738496840510,0.03240491,207.88,207.77,96.64]
[1738496841013,0.03240491,207.88,207.78,0.88387097]
[1738496841206,0.03240491,207.88,207.77,96.64]
[1738496843816,0.03240491,207.88,207.82,4.8131]
[1738496844314,4.8121,207.87,207.78,4.8139]
[1738496844519,0.03240491,207.88,207.77,95.16]
[1738496845614,4.84420491,207.88,207.79,4.8136]
[1738496845819,0.03240491,207.88,207.77,95.16]
[1738496846113,0.03240491,207.88,207.79,4.8136]
[1738496846419,0.03240491,207.88,207.77,95.16]
[1738496848818,4.812,207.87,207.78,4.8139]
[1738496849127,0.03240491,207.88,207.77,95.16]
[1738496849320,4.8124,207.85,207.78,4.8138]
[1738496849524,1.5412,207.84,207.77,95.16]
[1738496849820,1.57495205,207.84,207.77,95.16]
[1738496850323,3.0,207.83,207.77,95.16]
[1738496851024,3.0,207.83,207.61,95.24]
[1738496851212,3.0,207.83,207.62,0.88442328]
[1738496851621,0.03447227,207.75,207.63,4.3492]
[1738496851822,0.03447227,207.75,207.64,0.88442328]
[1738496852619,0.03447227,207.75,207.61,95.24]
[1738496852820,0.03447227,207.75,207.62,0.88459256]
[1738496853122,0.03157696,207.71,207.61,95.24]
[1738496854119,0.03157696,207.71,207.69,4.816]
[1738496854425,3.0,207.83,207.61,95.24]
[1738496854619,3.0,207.83,207.63,4.2604]
[1738496854822,3.0,207.83,207.64,0.88443632]
[1738496855518,3.0,207.83,207.71,0.03073047]
[1738496855519,0.03219294,207.76,207.71,0.03073047]
[1738496857928,0.03219294,207.76,207.72,4.8153]
[1738496858124,0.03219294,207.76,207.71,0.03073047]
[1738496858519,0.03219294,207.76,207.73,4.8152]
[1738496858718,0.03219294,207.76,207.71,0.03073047]
[1738496859023,0.03219294,207.76,207.73,4.8152]
[1738496859524,0.03219294,207.76,207.75,4.8147]
[1738496859719,0.03219294,207.76,207.71,0.03073047]
[1738496860625,0.03219294,207.76,207.75,4.8147]
[1738496861027,0.03219294,207.76,207.71,0.03073047]
[1738496861224,28.77,208.04,207.71,0.03073047]
[1738496861425,3.0736,207.91,207.71,0.03073047]
[1738496861627,4.8102,207.95,207.81,4.8132]
[1738496861826,3.017,208.02,207.73,2.7862]
[1738496862128,4.811,207.91,207.82,4.8129]
[1738496862323,3.017,208.02,207.73,2.7862]
[1738496862522,3.017,208.02,207.84,0.03351063]
[1738496862523,0.03309345,207.89,207.84,0.03351063]
[1738496862728,4.8128,207.84,207.63,4.12]
[1738496862926,4.8128,207.84,207.64,0.88440027]
[1738496863429,4.8128,207.84,207.75,4.8147]
[1738496863829,0.03062197,207.82,207.77,0.03363662]
[1738496864330,4.5678,207.88,207.64,0.88445504]
[1738496864635,0.03438156,207.82,207.77,0.0317039]
[1738496865521,4.84768156,207.82,207.77,0.0317039]
[1738496865728,0.03438156,207.82,207.77,0.0317039]
[1738496866326,0.03438156,207.82,207.78,4.814]
[1738496866529,0.03438156,207.82,207.77,0.0317039]
[1738496867032,0.03438156,207.82,207.78,4.8139]
[1738496867729,0.03438156,207.82,207.77,0.0317039]
[1738496868632,0.03438156,207.82,207.81,4.8133]
[1738496869225,1.564,207.93,207.84,4.8124]
[1738496869430,1.564,207.93,207.78,2.9161]
[1738496870530,0.03617867,207.88,207.83,0.03502361]
[1738496871739,4.84797867,207.88,207.83,0.03502361]
[1738496871927,0.03617867,207.88,207.83,0.03502361]
[1738496874938,0.03617867,207.88,207.83,4.84772361]
[1738496876140,0.03617867,207.88,207.83,0.03502361]
[1738496877137,1.4439,208.05,207.83,0.03502361]
[1738496877333,4.8085,208.02,207.93,4.8105]
[1738496877930,1.4439,208.05,207.8,2.8993]
[1738496878335,0.03418874,207.95,207.9,0.03115027]
[1738496878832,1.4439,208.05,207.83,95.28]
[1738496879038,0.03051957,207.95,207.9,0.03290878]
[1738496879433,1.4439,208.05,207.91,4.811]
[1738496879632,0.03362422,207.95,207.83,95.28]
[1738496879835,0.03362422,207.95,207.94,4.8103]
[1738496880039,4.8075,208.06,207.91,1.4236]
[1738496880238,1.5272,208.08,207.91,1.4236]
[1738496880440,0.03498782,207.97,207.96,4.8098]
[1738496880637,1.5272,208.08,207.91,2.95]
[1738496880936,0.03518214,207.99,207.97,4.84187286]
[1738496881144,0.03518214,207.99,207.97,4.8095]
[1738496881341,18.85356143,208.19,207.96,0.0315211]
[1738496881735,18.85356143,208.19,207.91,35.8]
[1738496882143,12.91076143,208.19,207.92,0.96190842]
[1738496882439,6.143e-05,208.19,208.01,28.77]
[1738496882646,2.443e-05,208.08,208.03,0.03060551]
[1738496882847,2.443e-05,208.08,208.03,0.91341379]
[1738496883037,6.143e-05,208.19,208.13,4.8058]
[1738496883241,6.143e-05,208.19,208.04,99.3]
[1738496883443,6.143e-05,208.19,208.05,0.88273432]
[1738496883648,1.4571,208.28,208.05,0.88273432]
[1738496883949,4.589e-05,208.14,208.1,0.03075801]
[1738496884343,3.0053,208.3,208.05,0.88273432]
[1738496884549,3.0053,208.3,208.06,0.88242384]
[1738496884849,1.4796,208.3,208.07,0.88242384]
[1738496885052,2.9414,208.36,208.08,0.96116878]
[1738496885245,0.03182279,208.21,208.16,0.03577178]
[1738496885443,1.4843,208.36,208.17,4.1]
[1738496885751,6.40642794,208.37,208.18,0.88242384]
[1738496886252,1.5432,208.43,208.18,0.88242384]
[1738496886653,3.372e-05,208.3,208.25,0.03434462]
[1738496886850,1.5419,208.46,208.26,95.16]
[1738496887147,3.0275,208.64,208.27,0.88242384]
[1738496887354,4.7961,208.56,208.43,4.7989]
[1738496887546,4.5125,208.64,208.37,4.1]
[1738496887750,4.7949,208.61,208.47,4.7979]
[1738496887953,4.5125,208.64,208.38,1.4243]
[1738496888150,4.5125,208.64,208.39,0.88138186]
[1738496888453,0.03183028,208.56,208.52,0.03451534]
[1738496890954,0.03183028,208.56,208.29,4.1]
[1738496891247,0.03183028,208.56,208.3,0.88166764]
[1738496891448,4.7976,208.5,208.36,4.8007]
[1738496891650,4.7976,208.5,208.3,0.88166764]
[1738496891651,1.5081,208.49,208.29,9.10923638]
[1738496892058,1.5081,208.49,208.3,0.88160092]
[1738496892358,0.03184341,208.41,208.37,0.03308305]
[1738496894156,0.03184341,208.41,208.2,1.4326]
[1738496894359,0.03184341,208.41,208.16,99.16]
[1738496894752,18.54,208.46,208.16,99.16]
[1738496895452,4.1,208.46,208.29,0.03427865]
[1738496895657,0.03130865,208.33,208.29,0.03427865]
[1738496896056,1.465,208.48,208.17,0.88229413]
[1738496896463,0.03597686,208.33,208.29,0.0345128]
[1738496896664,7.686e-05,208.33,208.29,0.0345128]
[1738496896963,1.465,208.48,208.29,4.1]
[1738496897458,6.2633,208.48,208.34,4.8011]
[1738496897665,1.465,208.48,208.16,95.06]
[1738496897855,1.465,208.48,208.17,4.98210541]
[1738496898059,0.03454583,208.43,208.24,4.8035]
[1738496898360,1.465,208.48,208.16,95.06]
[1738496898361,0.83540282,208.47,208.16,95.06]
[1738496898564,4.8021,208.31,208.19,4.8046]
[1738496898761,1.5084,208.3,208.16,95.06]
[1738496899367,0.03398388,208.25,208.21,0.03113052]
[1738496899566,0.03398388,208.25,208.16,95.06]
[1738496899865,4.8036,208.24,208.16,95.06]
[1738496900066,0.03398388,208.25,208.16,95.06]
[1738496900564,0.03398388,208.25,208.04,4.1]
[1738496900765,0.03398388,208.25,208.05,0.88282106]
[1738496900966,1.458,208.29,208.18,0.03111418]
[1738496901166,1.458,208.29,208.04,4.1]
[1738496901366,0.0330939,208.17,208.04,4.1]
[1738496901764,1.458,208.29,208.04,4.1]
[1738496901961,1.458,208.29,208.01,100.7157]
[1738496902366,4.8045,208.2,208.09,4.8069]
[1738496902568,0.03567122,208.17,208.13,0.0334975]
[1738496903166,4.8038,208.23,208.02,0.88295236]
[1738496903368,1.458,208.29,208.13,0.03101192]
[1738496903668,1.458,208.29,208.02,0.88295236]
[1738496904068,0.03442109,208.23,208.19,0.0309122]
[1738496904564,1.458,208.29,208.01,100.7157]
[1738496904770,2.9486,208.29,208.02,1.84413769]
[1738496905068,0.03395711,208.23,208.19,0.03319068]
[1738496905265,1.4906,208.29,208.13,4.08]
[1738496905470,1.5084,208.3,208.14,5.6265]
[1738496905663,7.21e-05,208.23,208.19,0.0348984]
[1738496906071,4.801,208.35,208.15,4.1]
[1738496906373,2.9471,208.39,208.15,4.1]
[1738496906670,2.9471,208.39,208.14,1.5465]
[1738496907068,0.03176184,208.29,208.25,0.03599377]
[1738496907568,4.8006,208.37,208.15,0.88243523]
[1738496907769,2.9471,208.39,208.16,0.88236199]
[1738496907975,0.03634571,208.29,208.27,4.8027]
[1738496908473,4.8003,208.38,208.27,4.8027]
[1738496908676,2.9471,208.39,208.28,4.8025]
[1738496908973,0.03176657,208.3,208.28,4.8025]
[1738496909274,2.9471,208.39,208.14,1.5465]
[1738496909470,0.03522547,208.31,208.27,0.03175438]
[1738496911268,0.03522547,208.31,208.15,0.96084554]
[1738496911478,0.03522547,208.31,208.14,1.5465]
[1738496911665,4.08,208.38,208.18,4.8046]
[1738496911971,4.08,208.38,208.14,1.5465]
[1738496912174,4.8026,208.28,208.16,4.8051]
[1738496912475,18.52,208.38,208.14,1.5465]
[1738496912773,0.03125851,208.24,208.2,0.03134888]
[1738496913174,18.52,208.38,208.13,95.06]
[1738496913477,0.03273587,208.24,208.2,0.03350841]
[1738496913668,0.03273587,208.24,208.13,95.06]
[1738496913871,18.52,208.38,208.13,95.06]
[1738496914274,18.52,208.38,208.04,1.4212]
[1738496914578,18.52,208.38,208.05,0.88282218]
[1738496914880,0.03081901,208.23,208.19,0.03131778]
[1738496915070,0.03081901,208.23,208.21,4.804]
[1738496915466,7.0071,208.39,208.04,1.4212]